bitfinex/quotes_BTCUSD_20240911
["timestamp","ask_amount","ask_price","bid_price","bid_amount"]
[1726023248192,0.17866085,57132.0,57131.0,0.00816855]
[1726023248193,1.30232667,57132.0,57131.0,0.00816855]
[1726023248433,0.1401,57131.0,57122.0,0.01254862]
[1726023248645,0.23736,57123.0,57122.0,0.01254862]
[1726023248863,0.72627356,57123.0,57122.0,0.01254862]
[1726023249090,0.52519,57122.0,57121.0,0.06254862]
[1726023249315,0.66405918,57122.0,57121.0,0.06254862]
[1726023250438,0.66405918,57122.0,57121.0,0.07071717]
[1726023250687,0.31393218,57122.0,57121.0,0.07071717]
[1726023250873,0.31993218,57122.0,57121.0,0.07071717]
[1726023251080,0.45465402,57122.0,57121.0,0.07071717]
[1726023251306,0.45465402,57122.0,57121.0,0.07271717]
[1726023251514,0.47609521,57122.0,57121.0,0.07271717]
[1726023251729,0.46809521,57122.0,57121.0,0.07271717]
[1726023252572,0.34137337,57122.0,57121.0,0.07271717]
[1726023252798,0.69150037,57122.0,57121.0,0.07071717]
[1726023253024,1.04162737,57122.0,57121.0,0.00816855]
[1726023253273,1.04162737,57122.0,57119.0,0.02]
[1726023253274,0.64643884,57122.0,57119.0,0.02]
[1726023253505,0.60811,57120.0,57119.0,0.02]
[1726023253718,0.39722228,57120.0,57119.0,0.06254862]
[1726023254852,0.39722228,57120.0,57119.0,0.02]
[1726023255057,0.40422228,57120.0,57119.0,0.06254862]
[1726023255921,0.89339197,57120.0,57119.0,0.06254862]
[1726023256355,0.75436228,57120.0,57119.0,0.06254862]
[1726023256793,0.40422228,57120.0,57119.0,0.06254862]
[1726023257099,0.40222228,57120.0,57119.0,0.06454862]
[1726023257272,0.40222228,57120.0,57118.0,0.051636]
[1726023257273,0.875365,57119.0,57118.0,0.051636]
[1726023257497,1.0146939,57119.0,57118.0,0.06418462]
[1726023257725,1.0421366,57119.0,57118.0,0.06418462]
[1726023258160,0.6919906,57119.0,57118.0,0.06418462]
[1726023258425,0.82919908,57119.0,57118.0,0.06418462]
[1726023258635,0.83519908,57119.0,57118.0,0.06418462]
[1726023260753,0.83519908,57119.0,57118.0,0.06618462]
[1726023260754,0.6979906,57119.0,57118.0,0.06618462]
[1726023260995,0.6979906,57119.0,57118.0,0.07451758]
[1726023261707,0.6979906,57119.0,57118.0,0.06618462]
[1726023262466,0.6979906,57119.0,57118.0,0.07451758]
[1726023263432,0.6979906,57119.0,57118.0,0.07251758]
[1726023263843,0.6979906,57119.0,57118.0,0.06418462]
[1726023266454,0.1727716,57119.0,57118.0,0.08418462]
[1726023266695,1.0481366,57119.0,57118.0,0.06007778]
[1726023266924,1.17809408,57119.0,57118.0,0.051636]
[1726023267139,1.67674008,57119.0,57118.0,0.051636]
[1726023267386,1.77674008,57119.0,57118.0,0.051636]
[1726023268664,1.6467826,57119.0,57118.0,0.051636]
[1726023269372,1.2966366,57119.0,57118.0,0.051636]
[1726023275527,1.48139783,57119.0,57118.0,0.051636]
[1726023278020,0.61603283,57119.0,57115.0,0.0014399]
[1726023278219,1.08794543,57116.0,57115.0,0.0014399]
[1726023278452,1.97107343,57116.0,57115.0,0.0014399]
[1726023280034,1.98207343,57116.0,57115.0,0.0014399]
[1726023280485,2.18083466,57116.0,57115.0,0.0014399]
[1726023281179,2.16983466,57116.0,57115.0,0.0014399]
[1726023281401,2.34600421,57116.0,57115.0,0.0014399]
[1726023281610,2.36000421,57116.0,57115.0,0.0014399]
[1726023281828,2.33200421,57116.0,57115.0,0.0014399]
[1726023282055,2.34600421,57116.0,57115.0,0.0014399]
[1726023282263,2.36000421,57116.0,57115.0,0.0014399]
[1726023282949,2.37158811,57116.0,57115.0,0.0014399]
[1726023283165,2.35758811,57116.0,57115.0,0.0014399]
[1726023283389,2.35758811,57116.0,57115.0,0.0030759]
[1726023283602,2.37158811,57116.0,57115.0,0.0030759]
[1726023284297,2.39903622,57116.0,57115.0,0.0030759]
[1726023284753,2.03887222,57116.0,57115.0,0.0030759]
[1726023285454,2.01142411,57116.0,57115.0,0.0030759]
[1726023287166,2.06380887,57116.0,57115.0,0.0030759]
[1726023287600,2.01142411,57116.0,57115.0,0.0030759]
[1726023288261,2.06380887,57116.0,57115.0,0.0030759]
[1726023290499,2.01142411,57116.0,57115.0,0.0030759]
[1726023291214,2.11744869,57116.0,57115.0,0.0030759]
[1726023292103,0.98922656,57116.0,57115.0,0.0030759]
[1726023292332,1.33939056,57116.0,57115.0,0.0030759]
[1726023293080,1.31139056,57116.0,57115.0,0.0030759]
[1726023293298,1.32239056,57116.0,57115.0,0.0030759]
[1726023293517,1.33039056,57116.0,57115.0,0.0030759]
[1726023293746,1.49556011,57116.0,57115.0,0.0030759]
[1726023294628,1.48756011,57116.0,57115.0,0.0030759]
[1726023294839,1.13739611,57116.0,57115.0,0.0030759]
[1726023295057,1.15439611,57116.0,57115.0,0.0030759]
[1726023296350,1.15439611,57116.0,57115.0,0.0050759]
[1726023298356,0.97822656,57116.0,57115.0,0.0030759]
[1726023299027,1.005672,57116.0,57115.0,0.0030759]
[1726023300570,0.380426,57116.0,57115.0,0.2642609]
[1726023300776,0.35916287,57116.0,57115.0,0.0891759]
[1726023301000,0.35916287,57116.0,57115.0,0.0030759]
[1726023301001,1.35315375,57116.0,57115.0,0.0030759]
[1726023301215,1.80392656,57116.0,57115.0,0.0030759]
[1726023301474,1.6989405,57116.0,57115.0,0.0030759]
[1726023301695,1.83017308,57116.0,57115.0,0.0030759]
[1726023301900,1.93017308,57116.0,57115.0,0.0030759]
[1726023302103,1.7989405,57116.0,57115.0,0.0030759]
[1726023302308,1.93017308,57116.0,57115.0,0.0030759]
[1726023302729,1.7989405,57116.0,57115.0,0.0030759]
[1726023303160,1.93020608,57116.0,57115.0,0.0030759]
[1726023303370,1.77149506,57116.0,57115.0,0.0030759]
[1726023303580,1.44808405,57116.0,57115.0,0.0030759]
[1726023303785,1.39556833,57116.0,57115.0,0.0030759]
[1726023304452,1.01915006,57116.0,57115.0,0.0030759]
[1726023304665,0.38422483,57116.0,57115.0,0.0691759]
[1726023304876,0.33171743,57116.0,57115.0,0.0691759]
[1726023305295,0.15663543,57116.0,57115.0,0.0891759]
[1726023305971,0.15663543,57116.0,57115.0,0.2642609]
[1726023306179,0.15663543,57116.0,57115.0,0.6144309]
[1726023306405,0.15663543,57116.0,57115.0,0.6164309]
[1726023306629,0.017,57116.0,57115.0,1.00914952]
[1726023308028,0.007,57116.0,57115.0,0.65897952]
[1726023308266,0.007,57116.0,57115.0,0.66097952]
[1726023308463,0.000818,57118.0,57117.0,0.177079]
[1726023308668,0.14037679,57118.0,57117.0,0.177079]
[1726023309048,0.14037679,57118.0,57117.0,0.207079]
[1726023309277,0.14037679,57118.0,57117.0,1.00604362]
[1726023309706,0.14137679,57118.0,57117.0,1.01104362]
[1726023310566,0.14137679,57118.0,57117.0,1.44430162]
[1726023310567,0.001818,57118.0,57117.0,1.44430162]
[1726023312269,0.02925702,57118.0,57117.0,1.44430162]
[1726023316083,0.001818,57118.0,57117.0,1.81745962]
[1726023316299,0.001818,57118.0,57117.0,2.1253998]
[1726023316957,0.001818,57118.0,57117.0,2.1213998]
[1726023317182,0.001818,57118.0,57117.0,2.1253998]
[1726023317413,0.001818,57118.0,57117.0,2.1223998]
[1726023317847,0.001818,57118.0,57117.0,2.1273998]
[1726023318055,0.000818,57118.0,57117.0,2.1203998]
[1726023318487,0.001818,57118.0,57117.0,2.1273998]
[1726023318697,0.002818,57118.0,57117.0,2.1343998]
[1726023319322,0.001818,57118.0,57117.0,2.1273998]
[1726023319534,0.002818,57118.0,57117.0,2.1393998]
[1726023322409,0.002818,57118.0,57117.0,1.55830162]
[1726023322649,0.002818,57118.0,57117.0,1.45830162]
[1726023323834,0.000818,57118.0,57117.0,1.43930162]
[1726023324291,0.001818,57118.0,57117.0,1.44530162]
[1726023324535,0.000818,57118.0,57117.0,1.43930162]
[1726023324756,0.002818,57118.0,57117.0,1.45130162]
[1726023325188,0.001818,57118.0,57117.0,1.44530162]
[1726023325629,0.001818,57118.0,57117.0,1.45130162]
[1726023325630,0.002818,57118.0,57117.0,1.45130162]
[1726023325868,0.002818,57118.0,57117.0,0.25162762]
[1726023326091,0.73370479,57118.0,57117.0,0.012]
[1726023326305,0.92839078,57118.0,57117.0,0.012]
[1726023326531,1.62869478,57118.0,57117.0,0.012]
[1726023326992,1.62769478,57118.0,57117.0,0.006]
[1726023327251,1.62769478,57118.0,57115.0,0.0030759]
[1726023327252,0.94151,57116.0,57115.0,0.0030759]
[1726023327498,1.25754487,57116.0,57115.0,0.0030759]
[1726023328480,1.60770887,57116.0,57115.0,0.0030759]
[1726023328727,1.80710887,57116.0,57115.0,0.0040759]
[1726023328960,1.79310887,57116.0,57115.0,0.0030759]
[1726023329833,1.87157179,57116.0,57115.0,0.0030759]
[1726023330283,1.87857179,57116.0,57115.0,0.0030759]
[1726023330499,1.86241349,57116.0,57115.0,0.0030759]
[1726023331270,1.81010887,57116.0,57115.0,0.0030759]
[1726023331490,1.86241568,57116.0,57115.0,0.0030759]
[1726023332855,1.81010887,57116.0,57115.0,0.0030759]
[1726023333082,1.86241402,57116.0,57115.0,0.0030759]
[1726023333310,1.86241474,57116.0,57115.0,0.0030759]
[1726023333506,1.86241118,57116.0,57115.0,0.0030759]
[1726023336719,1.81010887,57116.0,57115.0,0.0030759]
[1726023336947,1.81712887,57116.0,57115.0,0.0030759]
[1726023339391,1.84457762,57116.0,57115.0,0.0030759]
[1726023340511,1.83457762,57116.0,57115.0,0.0030759]
[1726023341441,1.65840807,57116.0,57115.0,0.0030759]
[1726023341669,0.80956007,57116.0,57115.0,0.0030759]
[1726023343049,0.80256007,57116.0,57115.0,0.0030759]
[1726023343260,0.81056007,57116.0,57115.0,0.0040759]
[1726023343722,0.80256007,57116.0,57115.0,0.0030759]
[1726023343981,0.79556007,57116.0,57115.0,0.0030759]
[1726023344202,0.9408797,57116.0,57115.0,0.0040759]
[1726023344423,0.91343095,57116.0,57115.0,0.0040759]
[1726023344638,0.32294732,57116.0,57115.0,0.0040759]
[1726023344850,0.14786532,57116.0,57115.0,0.0240759]
[1726023345541,0.14786532,57116.0,57115.0,0.94204952]
[1726023345796,0.14786532,57116.0,57115.0,1.08964952]
[1726023346026,0.008,57116.0,57115.0,1.08964952]
[1726023346946,0.005,57116.0,57115.0,1.08964952]
[1726023347164,0.008,57116.0,57115.0,1.08964952]
[1726023347593,0.02744184,57116.0,57115.0,1.08864952]
[1726023348047,0.02744184,57116.0,57115.0,1.09564952]
[1726023348048,0.03344184,57116.0,57115.0,1.09564952]
[1726023348257,0.02844184,57116.0,57115.0,1.09464952]
[1726023349197,0.002,57116.0,57115.0,1.45181952]
[1726023349413,0.002,57116.0,57115.0,1.10164952]
[1726023351460,0.002,57116.0,57115.0,1.45181952]
[1726023352420,0.02944113,57116.0,57115.0,1.45181952]
[1726023353342,0.002,57116.0,57115.0,1.45181952]
[1726023356263,0.002,57116.0,57115.0,1.10164952]
[1726023357138,0.002,57116.0,57115.0,0.75147952]
[1726023358069,0.002,57116.0,57115.0,1.10164952]
[1726023359209,0.002,57116.0,57115.0,0.75147952]
[1726023359665,0.002,57116.0,57115.0,1.10164952]
[1726023360840,0.002,57116.0,57115.0,1.45181952]
[1726023361102,0.002,57116.0,57115.0,1.47481952]
[1726023362428,0.002,57116.0,57115.0,1.47681952]
[1726023364568,0.002,57116.0,57115.0,2.0329297]
[1726023364788,0.002,57116.0,57115.0,2.1329297]
[1726023365056,0.002,57116.0,57115.0,1.7827597]
[1726023365288,0.002,57116.0,57115.0,1.57481952]
[1726023365571,0.000818,57118.0,57117.0,0.06454862]
[1726023365793,0.175894,57118.0,57117.0,0.06454862]
[1726023366020,0.08576692,57118.0,57117.0,0.06454862]
[1726023366234,0.08576692,57118.0,57117.0,0.23962762]
[1726023366409,0.000818,57118.0,57117.0,0.23962762]
[1726023366822,0.000818,57118.0,57117.0,0.06454862]
[1726023367269,0.000818,57118.0,57117.0,0.23962762]
[1726023368555,0.004818,57118.0,57117.0,0.23962762]
[1726023369354,0.85436602,57118.0,57117.0,0.01254862]
[1726023369568,0.525246,57116.0,57115.0,0.0030759]
[1726023369781,1.07707532,57116.0,57115.0,0.0030759]
[1726023370559,0.72691132,57116.0,57115.0,0.0030759]
[1726023370770,0.73816976,57116.0,57115.0,0.0030759]
[1726023371383,0.16731073,57116.0,57115.0,0.0230759]
[1726023372057,0.16831073,57116.0,57115.0,0.0240759]
[1726023372654,0.16731073,57116.0,57115.0,0.0230759]
[1726023374119,0.18531073,57116.0,57115.0,0.0250759]
[1726023374318,0.15786532,57116.0,57115.0,0.0250759]
[1726023374526,0.13986532,57116.0,57115.0,0.0230759]
[1726023374985,0.36599968,57116.0,57115.0,0.0040759]
[1726023375209,0.71516368,57116.0,57115.0,0.0040759]
[1726023375419,0.36499968,57116.0,57115.0,0.0030759]
[1726023375668,0.37099968,57116.0,57115.0,0.0040759]
[1726023375860,0.72516368,57116.0,57115.0,0.0040759]
[1726023376072,0.72516368,57116.0,57115.0,0.0240759]
[1726023376298,0.72516368,57116.0,57115.0,0.0040759]
[1726023377036,0.86716368,57116.0,57115.0,0.0040759]
[1726023377495,0.89460828,57116.0,57115.0,0.0040759]
[1726023377710,1.24477228,57116.0,57115.0,0.0040759]
[1726023385410,0.89460828,57116.0,57115.0,0.0040759]
[1726023386310,0.70255592,57116.0,57115.0,0.0040759]
[1726023386528,0.17730992,57116.0,57115.0,0.0040759]
[1726023386744,0.17730992,57116.0,57115.0,0.12932452]
[1726023387823,0.16730992,57116.0,57115.0,0.12832452]
[1726023388283,0.17730992,57116.0,57115.0,0.06662452]
[1726023388530,0.17130992,57116.0,57115.0,0.06562452]
[1726023388718,0.16730992,57116.0,57115.0,0.24070952]
[1726023388940,0.16830992,57116.0,57115.0,0.59087952]
[1726023389164,0.16830992,57116.0,57115.0,0.59187952]
[1726023389393,0.16830992,57116.0,57115.0,0.24170952]
[1726023390014,0.16830992,57116.0,57115.0,0.24370952]
[1726023391118,0.16830992,57116.0,57115.0,0.06862452]
[1726023391960,0.34339192,57116.0,57115.0,0.06862452]
[1726023392223,0.83052314,57116.0,57115.0,0.06662452]
[1726023392473,0.48035914,57116.0,57115.0,0.06662452]
[1726023393812,0.83052314,57116.0,57115.0,0.01662452]
[1726023394032,0.83052314,57116.0,57115.0,0.06662452]
[1726023395330,0.83052314,57116.0,57115.0,0.0040759]
[1726023395331,1.18068714,57116.0,57115.0,0.0040759]
[1726023395546,1.19194705,57116.0,57115.0,0.0040759]
[1726023396027,1.19194705,57116.0,57111.0,0.001636]
[1726023396028,0.875472,57112.0,57111.0,0.001636]
[1726023396259,1.07895046,57112.0,57111.0,0.001636]
[1726023396508,1.85672846,57112.0,57111.0,0.001636]
[1726023396757,1.95672846,57112.0,57111.0,0.001636]
[1726023397230,2.0879309,57112.0,57111.0,0.001636]
[1726023397460,2.26910045,57112.0,57111.0,0.001636]
[1726023397918,2.26410045,57112.0,57111.0,0.001636]
[1726023398152,2.27710045,57112.0,57111.0,0.003636]
[1726023398380,2.15989801,57112.0,57111.0,0.003636]
[1726023398610,2.15989801,57112.0,57111.0,0.001636]
[1726023398611,2.13289801,57112.0,57111.0,0.001636]
[1726023398845,2.23782409,57112.0,57111.0,0.001636]
[1726023399309,1.225766,57107.0,57106.0,0.001638]
[1726023399536,1.87046697,57107.0,57106.0,0.001638]
[1726023400694,1.87046697,57107.0,57092.0,0.0025295]
[1726023400695,0.490662,57100.0,57092.0,0.0025295]
[1726023400946,0.71021823,57093.0,57092.0,0.0025295]
[1726023401187,1.28916889,57093.0,57092.0,0.0025295]
[1726023401423,0.143392,57093.0,57092.0,0.20957812]
[1726023401642,0.143392,57093.0,57092.0,0.12647812]
[1726023403740,0.143392,57093.0,57092.0,0.12747812]
[1726023403741,0.148392,57093.0,57092.0,0.12747812]
[1726023404183,0.143392,57093.0,57092.0,0.12647812]
[1726023404583,0.155392,57093.0,57092.0,0.12747812]
[1726023407365,0.18284599,57093.0,57092.0,0.12747812]
[1726023407623,0.18284599,57093.0,57092.0,0.30463312]
[1726023407843,0.18284599,57093.0,57092.0,0.12947812]
[1726023408300,0.17584599,57093.0,57092.0,0.12847812]
[1726023408732,0.18084599,57093.0,57092.0,0.12847812]
[1726023408958,0.18084599,57093.0,57092.0,0.12647812]
[1726023408959,0.41007381,57093.0,57092.0,0.12647812]
[1726023409191,0.76037881,57093.0,57092.0,0.06507812]
[1726023409417,0.41007381,57093.0,57092.0,0.06507812]
[1726023409634,0.76037881,57093.0,57092.0,0.06507812]
[1726023409860,0.75537881,57093.0,57092.0,0.06507812]
[1726023410070,0.40007381,57093.0,57092.0,0.06507812]
[1726023410304,0.40007381,57093.0,57092.0,0.06807812]
[1726023410525,0.40007381,57093.0,57092.0,0.06907812]
[1726023411412,0.34599799,57093.0,57092.0,0.06907812]
[1726023412937,0.34599799,57093.0,57092.0,0.07071412]
[1726023414276,0.35752806,57093.0,57092.0,0.07071412]
[1726023416270,0.70783306,57093.0,57092.0,0.07071412]
[1726023417892,0.35752806,57093.0,57092.0,0.07071412]
[1726023419876,0.02745399,57093.0,57092.0,0.24586912]
[1726023420564,0.20260599,57093.0,57092.0,0.07271412]
[1726023420782,1.18220662,57093.0,57092.0,0.0081655]
[1726023421035,1.68981886,57093.0,57092.0,0.0081655]
[1726023421690,1.78981886,57093.0,57092.0,0.0081655]
[1726023421950,1.78981886,57093.0,57092.0,0.0051655]
[1726023422164,1.79781886,57093.0,57092.0,0.0061655]
[1726023422796,1.78981886,57093.0,57092.0,0.0041655]
[1726023423061,1.80181886,57093.0,57092.0,0.0051655]
[1726023423297,1.81281886,57093.0,57092.0,0.0061655]
[1726023423529,1.80181886,57093.0,57092.0,0.0051655]
[1726023424638,1.81581886,57093.0,57092.0,0.0061655]
[1726023428756,2.24672386,57093.0,57092.0,0.0061655]
[1726023428959,1.55238723,57081.0,57080.0,0.0041675]
[1726023429208,1.6966997,57081.0,57080.0,0.0041675]
[1726023429416,1.7966997,57081.0,57080.0,0.0041675]
[1726023429921,1.7160997,57081.0,57080.0,0.0041675]
[1726023430134,1.3050207,57081.0,57080.0,0.0041675]
[1726023430372,1.3060207,57081.0,57080.0,0.0041675]
[1726023430794,1.3050207,57081.0,57080.0,0.0041675]
[1726023431237,1.3190207,57081.0,57080.0,0.0051675]
[1726023431457,1.3050207,57081.0,57080.0,0.0041675]
[1726023431897,1.3190207,57081.0,57080.0,0.0051675]
[1726023432373,1.34166503,57081.0,57080.0,0.0051675]
[1726023432811,1.51783458,57081.0,57080.0,0.0051675]
[1726023433048,1.50383458,57081.0,57080.0,0.0041675]
[1726023433490,1.34066503,57081.0,57080.0,0.0241675]
[1726023433699,1.32766503,57081.0,57080.0,0.0241675]
[1726023434137,1.34066503,57081.0,57080.0,0.0241675]
[1726023434552,1.32966503,57081.0,57080.0,0.0241675]
[1726023434775,1.50941337,57081.0,57080.0,0.0241675]
[1726023435003,1.49641337,57081.0,57080.0,0.0241675]
[1726023435211,1.31666503,57081.0,57080.0,0.0241675]
[1726023435626,1.3050207,57081.0,57080.0,0.0241675]
[1726023435849,1.3100207,57081.0,57080.0,0.0241675]
[1726023436292,1.3190207,57081.0,57080.0,0.0241675]
[1726023436536,0.9686417,57081.0,57080.0,0.0241675]
[1726023436759,1.45206663,57081.0,57080.0,0.0241675]
[1726023437195,1.44306663,57081.0,57080.0,0.0241675]
[1726023437475,1.45006663,57081.0,57080.0,0.0241675]
[1726023437703,1.3120207,57081.0,57080.0,0.0241675]
[1726023437909,1.3170207,57081.0,57080.0,0.0241675]
[1726023438609,1.3120207,57081.0,57080.0,0.0241675]
[1726023439045,1.3210207,57081.0,57080.0,0.0241675]
[1726023439262,1.3210207,57081.0,57080.0,0.0041675]
[1726023439263,1.48930453,57081.0,57080.0,0.0041675]
[1726023439471,1.48030453,57081.0,57080.0,0.0041675]
[1726023439907,1.48030453,57081.0,57080.0,0.0241675]
[1726023440120,1.89078353,57081.0,57080.0,0.0041675]
[1726023440355,1.96128353,57081.0,57080.0,0.0041675]
[1726023440792,1.97728353,57081.0,57080.0,0.0041675]
[1726023440998,1.96628353,57081.0,57080.0,0.0041675]
[1726023441471,1.97228353,57081.0,57080.0,0.0041675]
[1726023441697,1.98128353,57081.0,57080.0,0.0041675]
[1726023442127,1.97228353,57081.0,57080.0,0.0041675]
[1726023442311,1.98328353,57081.0,57080.0,0.0041675]
[1726023442633,1.97228353,57081.0,57080.0,0.0041675]
[1726023443467,1.98528353,57081.0,57080.0,0.0041675]
[1726023443717,1.97228353,57081.0,57080.0,0.0041675]
[1726023444176,1.98528353,57081.0,57080.0,0.0041675]
[1726023445820,1.8169997,57081.0,57080.0,0.0041675]
[1726023447390,1.84446281,57081.0,57080.0,0.0041675]
[1726023454225,1.89688529,57081.0,57080.0,0.0041675]
[1726023456994,1.81938529,57081.0,57080.0,0.0041675]
[1726023457220,1.76696281,57081.0,57080.0,0.0041675]
[1726023457439,1.99557169,57081.0,57080.0,0.0041675]
[1726023458375,2.02176608,57081.0,57080.0,0.0041675]
[1726023458589,1.94313236,57081.0,57080.0,0.0041675]
[1726023459253,2.02176608,57081.0,57080.0,0.0041675]
[1726023461322,1.94313236,57081.0,57080.0,0.0041675]
[1726023461548,2.04797732,57081.0,57080.0,0.0041675]
[1726023462045,1.94313236,57081.0,57080.0,0.0041675]
[1726023462270,2.04807991,57081.0,57080.0,0.0041675]
[1726023462955,1.98797991,57081.0,57080.0,0.0041675]
[1726023463168,1.81181036,57081.0,57080.0,0.0676675]
[1726023464274,1.83804725,57081.0,57080.0,0.0676675]
[1726023464707,1.81188599,57081.0,57080.0,0.0676675]
[1726023465126,1.70686281,57081.0,57080.0,0.0676675]
[1726023465339,1.81188599,57081.0,57080.0,0.0676675]
[1726023467300,1.81188599,57081.0,57080.0,0.0876675]
[1726023467532,1.81193805,57081.0,57080.0,0.0876675]
[1726023467959,1.98810757,57081.0,57080.0,0.0876675]
[1726023468282,1.88303236,57081.0,57080.0,0.0876675]
[1726023469150,2.0142168,57081.0,57080.0,0.0876675]
[1726023470850,1.98675369,57081.0,57080.0,0.0876675]
[1726023471442,1.85556925,57081.0,57080.0,0.0876675]
[1726023471672,1.85556925,57081.0,57080.0,0.0241675]
[1726023472786,1.85556925,57081.0,57080.0,0.0041675]
[1726023473261,2.01329618,57081.0,57080.0,0.0041675]
[1726023474178,2.04075946,57081.0,57080.0,0.0041675]
[1726023474404,1.88303253,57081.0,57080.0,0.0041675]
[1726023475274,2.04095323,57081.0,57080.0,0.0041675]
[1726023475942,1.51440468,57081.0,57080.0,0.0241675]
[1726023476187,1.51440468,57081.0,57080.0,0.0041675]
[1726023476422,1.70686298,57081.0,57080.0,0.0041675]
[1726023476864,1.86478277,57081.0,57080.0,0.0041675]
[1726023477097,2.04095232,57081.0,57080.0,0.0041675]
[1726023477321,1.88303253,57081.0,57080.0,0.0041675]
[1726023479327,1.85556925,57081.0,57080.0,0.0041675]
[1726023480394,1.6793997,57081.0,57080.0,0.0041675]
[1726023480620,1.8373276,57081.0,57080.0,0.0041675]
[1726023480831,1.83732621,57081.0,57080.0,0.0041675]
[1726023481301,0.32623898,57081.0,57080.0,0.1637675]
[1726023481510,0.46410152,57081.0,57080.0,0.1637675]
[1726023481765,0.28891252,57081.0,57080.0,0.1637675]
[1726023481993,0.07663563,57081.0,57080.0,0.38150812]
[1726023482213,0.024,57081.0,57080.0,0.38350812]
[1726023482422,0.024,57081.0,57080.0,1.08427812]
[1726023482423,0.011,57081.0,57080.0,1.08427812]
[1726023482835,0.024,57081.0,57080.0,1.08427812]
[1726023483043,0.011,57081.0,57080.0,1.08427812]
[1726023483252,0.011,57081.0,57080.0,1.43466312]
[1726023483513,0.02746035,57087.0,57086.0,0.59007062]
[1726023483735,0.05345363,57091.0,57090.0,0.72963462]
[1726023483974,0.05345363,57091.0,57090.0,0.20414862]
[1726023484223,0.84194885,57091.0,57090.0,0.02]
[1726023484433,0.74894524,57091.0,57090.0,0.06254862]
[1726023484671,0.66999179,57091.0,57090.0,0.06254862]
[1726023485175,0.77728243,57091.0,57090.0,0.06454862]
[1726023485382,0.69844794,57091.0,57090.0,0.06454862]
[1726023485607,0.17297294,57091.0,57090.0,0.06454862]
[1726023485834,0.02927415,57091.0,57090.0,0.72963462]
[1726023486490,0.02827415,57091.0,57090.0,0.72863462]
[1726023486707,0.02827415,57091.0,57090.0,0.73163462]
[1726023486928,0.02827415,57091.0,57090.0,0.73063462]
[1726023487412,0.02827415,57091.0,57090.0,0.72763462]
[1726023487633,0.02827415,57091.0,57090.0,1.07795862]
[1726023487863,0.03227415,57091.0,57090.0,1.08295862]
[1726023488302,0.03227415,57091.0,57090.0,0.73263462]
[1726023488617,0.525568,57081.0,57080.0,0.0041675]
[1726023488859,1.20594135,57081.0,57080.0,0.0041675]
[1726023489089,1.65632035,57081.0,57080.0,0.0041675]
[1726023489321,1.22641,57077.0,57076.0,0.0021594]
[1726023489553,1.37225701,57077.0,57076.0,0.0021594]
[1726023489784,1.47225701,57077.0,57076.0,0.0021594]
[1726023490218,1.55465701,57077.0,57076.0,0.0021594]
[1726023490885,1.68590735,57077.0,57076.0,0.0021594]
[1726023491095,1.73982656,57077.0,57076.0,0.0021594]
[1726023491350,1.8710688,57077.0,57076.0,0.0021594]
[1726023491570,2.06083003,57077.0,57076.0,0.0031594]
[1726023491821,1.9570537,57077.0,57076.0,0.0031594]
[1726023492022,2.08829614,57077.0,57076.0,0.0031594]
[1726023492250,1.9570537,57077.0,57076.0,0.0031594]
[1726023493527,1.226477,57074.0,57073.0,0.001636]
[1726023493736,1.60378373,57074.0,57073.0,0.001636]
[1726023494155,1.60377131,57074.0,57073.0,0.001636]
[1726023495288,1.60677131,57074.0,57073.0,0.001636]
[1726023495926,1.96219331,57074.0,57073.0,0.001636]
[1726023496151,2.00714579,57074.0,57073.0,0.001636]
[1726023497708,2.15980261,57066.0,57065.0,0.001636]
[1726023497945,2.44692412,57066.0,57065.0,0.001636]
[1726023498167,2.44692412,57066.0,57057.0,0.0041655]
[1726023498168,0.52578,57058.0,57057.0,0.0041655]
[1726023498359,1.24362359,57058.0,57057.0,0.0041655]
[1726023498499,1.59414359,57058.0,57057.0,0.0041655]
[1726023499390,1.94466359,57058.0,57057.0,0.0041655]
[1726023500480,1.94466359,57058.0,57045.0,0.0025295]
[1726023500481,0.04745138,57055.0,57045.0,0.0025295]
[1726023500692,1.21037813,57052.0,57045.0,0.0025295]
[1726023500908,1.66093513,57052.0,57045.0,0.0025295]
[1726023501118,2.01149213,57052.0,57045.0,0.0025295]
[1726023501549,2.03897076,57052.0,57045.0,0.0025295]
[1726023501759,2.01149213,57052.0,57045.0,0.0025295]
[1726023501967,2.18766168,57052.0,57045.0,0.0025295]
[1726023502381,2.20511306,57052.0,57045.0,0.0025295]
[1726023502590,0.175297,57046.0,57045.0,0.0025295]
[1726023502794,0.614588,57046.0,57045.0,0.0025295]
[1726023503001,1.76463144,57046.0,57045.0,0.0025295]
[1726023503208,0.15014659,57046.0,57045.0,0.1434295]
[1726023503890,0.01160529,57050.0,57045.0,0.1434295]
[1726023504142,0.28476123,57055.0,57050.0,0.002]
[1726023504363,0.22963871,57054.0,57050.0,0.002]
[1726023504576,0.1,57053.0,57050.0,0.002]
[1726023504784,0.14968572,57052.0,57050.0,0.002]
[1726023505703,0.02747508,57054.0,57053.0,0.57037462]
[1726023505923,0.02747508,57054.0,57053.0,0.98432562]
[1726023506139,0.02747508,57054.0,57053.0,1.06182562]
[1726023507191,0.02847508,57054.0,57053.0,1.06382562]
[1726023507393,0.02947508,57054.0,57053.0,1.41837662]
[1726023507622,0.02947508,57054.0,57053.0,1.06782562]
[1726023508245,0.02947508,57054.0,57053.0,1.06946162]
[1726023508464,0.002,57054.0,57053.0,1.44301262]
[1726023509112,0.001,57054.0,57053.0,1.44101262]
[1726023509333,0.4768,57066.0,57065.0,0.673215]
[1726023509581,0.0121681,57074.0,57073.0,0.525642]
[1726023509830,0.000818,57074.0,57073.0,0.93997]
[1726023511480,0.14712548,57074.0,57071.0,0.01454862]
[1726023511716,0.53007765,57073.0,57068.0,0.04454862]
[1726023511959,0.35998223,57071.0,57068.0,0.04454862]
[1726023512202,0.14692151,57070.0,57069.0,0.002]
[1726023512450,0.14692151,57070.0,57069.0,0.177226]
[1726023512686,0.14692151,57070.0,57069.0,0.527678]
[1726023513449,0.14692151,57070.0,57067.0,0.0639]
[1726023513450,0.183718,57070.0,57067.0,0.0639]
[1726023513695,0.183718,57070.0,57061.0,0.002]
[1726023513696,0.17524,57065.0,57064.0,0.04254862]
[1726023513940,0.35999423,57067.0,57065.0,0.04254862]
[1726023514175,0.175241,57064.0,57063.0,0.002]
[1726023514418,0.21222899,57067.0,57065.0,0.04254862]
[1726023514654,0.32269386,57066.0,57065.0,0.04254862]
[1726023515131,0.67316486,57066.0,57065.0,0.04254862]
[1726023516124,0.21222899,57067.0,57066.0,0.03]
[1726023516364,0.02746776,57067.0,57066.0,0.56825462]
[1726023516605,0.02746776,57067.0,57066.0,1.35079662]
[1726023516848,0.02746776,57067.0,57066.0,1.00032562]
[1726023517085,0.02746776,57067.0,57066.0,1.00232562]
[1726023518053,0.02746776,57067.0,57066.0,1.00032562]
[1726023518281,0.02746776,57067.0,57066.0,1.00232562]
[1726023518525,0.02746776,57067.0,57066.0,1.00032562]